[Event "Early-Titled-Tuesday-Blitz-February-20-2024"]
[Site "Chess.com"]
[Date "2024.02.20"]
[Round "11"]
[White "Kotofeyca"]
[Black "Lion-Al-Messi"]
[Result "1-0"]
[WhiteElo "2424"]
[BlackElo "2519"]
[TimeControl "180+1"]
[EndTime "10:07:25 PST"]
[Termination "Kotofeyca won by resignation"]

1. d4 {[%clk 0:03:00.9]} 1... Nf6 {[%clk 0:02:59.2]} 2. c4 {[%clk 0:03:00.6]}
2... b6 {[%clk 0:02:59.4]} 3. Nc3 {[%clk 0:02:59.6]} 3... Bb7 {[%clk 0:02:59.5]}
4. Bg5 {[%clk 0:02:57.8]} 4... e6 {[%clk 0:02:57.6]} 5. Qc2 {[%clk 0:02:41.6]}
5... d5 {[%clk 0:02:55.8]} 6. cxd5 {[%clk 0:02:39.2]} 6... exd5 {[%clk
0:02:55.5]} 7. e3 {[%clk 0:02:37.5]} 7... h6 {[%clk 0:02:55]} 8. Bh4 {[%clk
0:02:21.1]} 8... Be7 {[%clk 0:02:53.3]} 9. Nf3 {[%clk 0:02:14.1]} 9... O-O
{[%clk 0:02:53]} 10. Be2 {[%clk 0:02:14.2]} 10... c5 {[%clk 0:02:52.5]} 11. dxc5
{[%clk 0:02:11.9]} 11... bxc5 {[%clk 0:02:52.1]} 12. O-O {[%clk 0:02:12.5]}
12... Nc6 {[%clk 0:02:51.9]} 13. Rfd1 {[%clk 0:02:11.8]} 13... g5 {[%clk
0:02:42.1]} 14. Bg3 {[%clk 0:02:09.6]} 14... Qd7 {[%clk 0:02:37.4]} 15. Bb5
{[%clk 0:01:57.9]} 15... Qe6 {[%clk 0:02:33.7]} 16. Qa4 {[%clk 0:01:37.9]} 16...
a6 {[%clk 0:02:30.2]} 17. Bf1 {[%clk 0:01:31.3]} 17... Nb4 {[%clk 0:02:29.4]}
18. Rd2 {[%clk 0:01:09.4]} 18... Ne4 {[%clk 0:02:23.9]} 19. Nxe4 {[%clk
0:01:05.9]} 19... dxe4 {[%clk 0:02:24.8]} 20. Ne5 {[%clk 0:01:01.1]} 20... Rad8
{[%clk 0:02:22.8]} 21. Rad1 {[%clk 0:00:54]} 21... Rxd2 {[%clk 0:02:08.2]} 22.
Rxd2 {[%clk 0:00:54.1]} 22... Rd8 {[%clk 0:02:08.3]} 23. Bc4 {[%clk 0:00:44.2]}
23... Rxd2 {[%clk 0:02:03.5]} 24. Bxe6 {[%clk 0:00:42.7]} 24... Kg7 {[%clk
0:01:50.2]} 25. Nc4 {[%clk 0:00:20]} 25... Re2 {[%clk 0:01:41.8]} 26. h3 {[%clk
0:00:18.8]} 26... fxe6 {[%clk 0:01:36.7]} 27. Qd7 {[%clk 0:00:18.6]} 27... Nd5
{[%clk 0:01:26.4]} 28. Qxb7 {[%clk 0:00:18.5]} 28... Rc2 {[%clk 0:01:26.6]} 29.
Ne5 {[%clk 0:00:16.4]} 29... Rc1+ {[%clk 0:01:27.1]} 30. Kh2 {[%clk 0:00:16]}
30... h5 {[%clk 0:01:28]} 31. Nc6 {[%clk 0:00:15.8]} 31... Kf7 {[%clk
0:01:28.5]} 32. Nxe7 {[%clk 0:00:16.3]} 32... Nxe7 {[%clk 0:01:26.8]} 33. Bd6
{[%clk 0:00:16.8]} 1-0

[Event "Early-Titled-Tuesday-Blitz-February-20-2024"]
[Site "Chess.com"]
[Date "2024.02.20"]
[Round "11"]
[White "tsaruk_maks"]
[Black "Yeritsyaan"]
[Result "1-0"]
[WhiteElo "2752"]
[BlackElo "2610"]
[TimeControl "180+1"]
[EndTime "10:07:30 PST"]
[Termination "tsaruk_maks won by resignation"]

1. e4 {[%clk 0:03:00.9]} 1... g6 {[%clk 0:02:57]} 2. d4 {[%clk 0:03:00.5]} 2...
Bg7 {[%clk 0:02:57.6]} 3. c3 {[%clk 0:02:59.8]} 3... c6 {[%clk 0:02:56.2]} 4.
Bd3 {[%clk 0:02:58.5]} 4... d5 {[%clk 0:02:53.2]} 5. e5 {[%clk 0:02:58.6]} 5...
h5 {[%clk 0:02:53]} 6. h3 {[%clk 0:02:58.6]} 6... Nh6 {[%clk 0:02:52.4]} 7. Bg5
{[%clk 0:02:57.7]} 7... Bf5 {[%clk 0:02:52.4]} 8. Be2 {[%clk 0:02:52.5]} 8...
Qb6 {[%clk 0:02:46.3]} 9. Qc1 {[%clk 0:02:48.5]} 9... c5 {[%clk 0:02:36.1]} 10.
Nf3 {[%clk 0:02:45]} 10... Nc6 {[%clk 0:02:33.7]} 11. O-O {[%clk 0:02:31.9]}
11... cxd4 {[%clk 0:02:31.4]} 12. cxd4 {[%clk 0:02:30.7]} 12... Bxb1 {[%clk
0:02:30.3]} 13. Rxb1 {[%clk 0:02:30.3]} 13... Nf5 {[%clk 0:02:30.5]} 14. Rd1
{[%clk 0:02:12.1]} 14... Ncxd4 {[%clk 0:02:18.5]} 15. Nxd4 {[%clk 0:02:09.3]}
15... Nxd4 {[%clk 0:02:19.4]} 16. Bf1 {[%clk 0:01:54.9]} 16... Bxe5 {[%clk
0:01:45.8]} 17. Be3 {[%clk 0:01:50.5]} 17... Bf6 {[%clk 0:01:25.3]} 18. Qd2
{[%clk 0:01:37.8]} 18... e5 {[%clk 0:01:23.5]} 19. f4 {[%clk 0:01:37.1]} 19...
O-O {[%clk 0:00:27.5]} 20. fxe5 {[%clk 0:01:34.9]} 20... Bg5 {[%clk 0:00:27.8]}
21. Bxd4 {[%clk 0:01:33.2]} 21... Bxd2 {[%clk 0:00:16.7]} 22. Bxb6 {[%clk
0:01:32.9]} 22... axb6 {[%clk 0:00:15.9]} 23. Rxd2 {[%clk 0:01:33.1]} 23... Rxa2
{[%clk 0:00:16.2]} 24. Rxd5 {[%clk 0:01:32.9]} 24... Rc8 {[%clk 0:00:13.5]} 25.
Rb5 {[%clk 0:01:23.4]} 25... Rc5 {[%clk 0:00:10.6]} 26. Rxb6 {[%clk 0:01:22.9]}
26... Rxe5 {[%clk 0:00:10.5]} 27. Rxb7 {[%clk 0:01:23.6]} 27... Ra4 {[%clk
0:00:08.6]} 28. b3 {[%clk 0:01:23.9]} 28... Ra2 {[%clk 0:00:07.3]} 29. Bc4
{[%clk 0:01:24]} 29... Rf5 {[%clk 0:00:06]} 30. Rf1 {[%clk 0:01:24.7]} 30...
Rxf1+ {[%clk 0:00:06.6]} 31. Kxf1 {[%clk 0:01:25.2]} 1-0

[Event "Early-Titled-Tuesday-Blitz-February-20-2024"]
[Site "Chess.com"]
[Date "2024.02.20"]
[Round "11"]
[White "ChessLover0108"]
[Black "Evgeny81"]
[Result "1-0"]
[WhiteElo "2960"]
[BlackElo "2759"]
[TimeControl "180+1"]
[EndTime "10:07:32 PST"]
[Termination "ChessLover0108 won by resignation"]

1. Nf3 {[%clk 0:02:32.9]} 1... d5 {[%clk 0:02:59.1]} 2. g3 {[%clk 0:02:32.9]}
2... c6 {[%clk 0:02:59.6]} 3. Bg2 {[%clk 0:02:33.6]} 3... Bg4 {[%clk 0:03:00.1]}
4. O-O {[%clk 0:02:34.5]} 4... Nd7 {[%clk 0:03:00.3]} 5. d3 {[%clk 0:02:34.8]}
5... e5 {[%clk 0:03:00.2]} 6. Nbd2 {[%clk 0:02:35.5]} 6... Ngf6 {[%clk
0:03:00.3]} 7. c4 {[%clk 0:02:35.6]} 7... d4 {[%clk 0:02:51.2]} 8. Re1 {[%clk
0:02:26.4]} 8... Bd6 {[%clk 0:02:49.1]} 9. h3 {[%clk 0:02:20]} 9... Bh5 {[%clk
0:02:48.9]} 10. Nh4 {[%clk 0:02:19.3]} 10... O-O {[%clk 0:02:49.1]} 11. Rb1
{[%clk 0:02:17.9]} 11... a5 {[%clk 0:02:48]} 12. a3 {[%clk 0:02:18.5]} 12... a4
{[%clk 0:02:47.5]} 13. Qc2 {[%clk 0:02:18]} 13... Re8 {[%clk 0:02:44.4]} 14. b4
{[%clk 0:02:16.2]} 14... axb3 {[%clk 0:02:43.9]} 15. Nxb3 {[%clk 0:02:16.7]}
15... Bxa3 {[%clk 0:02:39.6]} 16. Bxa3 {[%clk 0:02:17.3]} 16... Rxa3 {[%clk
0:02:40.1]} 17. Nf5 {[%clk 0:02:17.7]} 17... Qc7 {[%clk 0:02:28.8]} 18. c5
{[%clk 0:02:17.3]} 18... Bg6 {[%clk 0:02:18.2]} 19. Nd6 {[%clk 0:02:17.9]} 19...
Rea8 {[%clk 0:02:17.9]} 20. Nxb7 {[%clk 0:01:53.3]} 20... Qxb7 {[%clk
0:02:09.7]} 21. Nxd4 {[%clk 0:01:52.9]} 21... Qc7 {[%clk 0:02:10.2]} 22. Nxc6
{[%clk 0:01:53]} 22... Re8 {[%clk 0:02:05.1]} 23. Rb7 {[%clk 0:01:49]} 23... Qc8
{[%clk 0:01:49.8]} 24. Qb2 {[%clk 0:01:31.9]} 24... Ra8 {[%clk 0:01:27.4]} 25.
Rc1 {[%clk 0:01:26.3]} 25... h5 {[%clk 0:01:21]} 26. Na7 {[%clk 0:01:25]} 26...
Rxa7 {[%clk 0:01:12]} 27. Rxa7 {[%clk 0:01:25.9]} 27... e4 {[%clk 0:01:12.1]}
28. c6 {[%clk 0:01:25.4]} 28... Ne5 {[%clk 0:01:11.7]} 29. c7 {[%clk 0:01:18.6]}
29... exd3 {[%clk 0:00:45.7]} 30. Ra8 {[%clk 0:01:18.4]} 30... dxe2 {[%clk
0:00:16.3]} 31. Rxc8 {[%clk 0:01:16.4]} 31... Rxc8 {[%clk 0:00:17]} 32. Qxe5
{[%clk 0:01:16]} 1-0

[Event "Early-Titled-Tuesday-Blitz-February-20-2024"]
[Site "Chess.com"]
[Date "2024.02.20"]
[Round "11"]
[White "ketster"]
[Black "lamomiajunior"]
[Result "1-0"]
[WhiteElo "2606"]
[BlackElo "2724"]
[TimeControl "180+1"]
[EndTime "10:07:40 PST"]
[Termination "ketster won by resignation"]

1. d4 {[%clk 0:03:00.9]} 1... Nf6 {[%clk 0:02:59.4]} 2. c4 {[%clk 0:03:00]} 2...
e6 {[%clk 0:02:59.5]} 3. Nc3 {[%clk 0:03:00]} 3... Bb4 {[%clk 0:02:59.5]} 4. g3
{[%clk 0:02:59.6]} 4... d5 {[%clk 0:02:56.9]} 5. Bg2 {[%clk 0:02:58.9]} 5... O-O
{[%clk 0:02:55.5]} 6. Nf3 {[%clk 0:02:56.4]} 6... dxc4 {[%clk 0:02:55.7]} 7. O-O
{[%clk 0:02:52.8]} 7... Nc6 {[%clk 0:02:56.1]} 8. Qa4 {[%clk 0:02:46.3]} 8...
Rb8 {[%clk 0:02:55.1]} 9. Rd1 {[%clk 0:02:39]} 9... a6 {[%clk 0:02:51.7]} 10.
Ne5 {[%clk 0:02:30.1]} 10... Bxc3 {[%clk 0:02:48.6]} 11. Nxc6 {[%clk 0:02:21.7]}
11... bxc6 {[%clk 0:02:46.7]} 12. bxc3 {[%clk 0:02:20]} 12... Nd5 {[%clk
0:02:46.5]} 13. Qxc4 {[%clk 0:02:15.5]} 13... Bd7 {[%clk 0:02:40.4]} 14. e4
{[%clk 0:02:11.5]} 14... Nb6 {[%clk 0:02:40]} 15. Qxa6 {[%clk 0:02:09.5]} 15...
Ra8 {[%clk 0:02:37.8]} 16. Qe2 {[%clk 0:02:06.9]} 16... Qe7 {[%clk 0:02:37.8]}
17. Bf4 {[%clk 0:02:01.7]} 17... Bc8 {[%clk 0:02:33.1]} 18. Qg4 {[%clk
0:01:43.9]} 18... Kh8 {[%clk 0:02:31.9]} 19. e5 {[%clk 0:01:38.3]} 19... Nd5
{[%clk 0:02:28.8]} 20. Bd2 {[%clk 0:01:27.7]} 20... f5 {[%clk 0:02:27.7]} 21.
exf6 {[%clk 0:01:25.8]} 21... Nxf6 {[%clk 0:02:27.1]} 22. Qe2 {[%clk 0:01:22.9]}
22... Ba6 {[%clk 0:02:26.5]} 23. c4 {[%clk 0:01:22]} 23... Rad8 {[%clk
0:02:21.9]} 24. Bc3 {[%clk 0:01:20.2]} 24... Qa3 {[%clk 0:02:21.3]} 25. Rac1
{[%clk 0:01:12.7]} 25... c5 {[%clk 0:02:15.7]} 26. dxc5 {[%clk 0:01:02.1]} 26...
Rxd1+ {[%clk 0:02:15.6]} 27. Qxd1 {[%clk 0:01:02]} 27... Qxc5 {[%clk 0:02:16]}
28. Qd4 {[%clk 0:00:55.8]} 28... Qa3 {[%clk 0:02:07.6]} 29. Re1 {[%clk 0:00:50]}
29... Qxa2 {[%clk 0:02:01.1]} 30. Rxe6 {[%clk 0:00:41.8]} 30... Bxc4 {[%clk
0:02:00.6]} 31. Re7 {[%clk 0:00:32.1]} 31... Bd5 {[%clk 0:01:41.6]} 32. Bxd5
{[%clk 0:00:21.6]} 32... Qa3 {[%clk 0:01:29.5]} 33. Rxc7 {[%clk 0:00:16.4]}
33... Rd8 {[%clk 0:01:28.9]} 34. Qxf6 {[%clk 0:00:13.4]} 1-0

[Event "Early-Titled-Tuesday-Blitz-February-20-2024"]
[Site "Chess.com"]
[Date "2024.02.20"]
[Round "11"]
[White "DonMicheleCorleone"]
[Black "BozeKat"]
[Result "1-0"]
[WhiteElo "2508"]
[BlackElo "2152"]
[TimeControl "180+1"]
[EndTime "10:07:40 PST"]
[Termination "DonMicheleCorleone won on time"]

1. e4 {[%clk 0:02:56.7]} 1... c6 {[%clk 0:02:59.6]} 2. Nc3 {[%clk 0:02:56]} 2...
d5 {[%clk 0:03:00.5]} 3. Nf3 {[%clk 0:02:55.7]} 3... a6 {[%clk 0:03:00.8]} 4. d4
{[%clk 0:02:50.2]} 4... Bg4 {[%clk 0:03:00.9]} 5. h3 {[%clk 0:02:44.7]} 5... Bh5
{[%clk 0:03:01]} 6. Bd3 {[%clk 0:02:39.6]} 6... e6 {[%clk 0:03:00.8]} 7. O-O
{[%clk 0:02:38.9]} 7... Nf6 {[%clk 0:03:00.8]} 8. e5 {[%clk 0:02:38.5]} 8...
Nfd7 {[%clk 0:03:01]} 9. g4 {[%clk 0:02:37.8]} 9... Bg6 {[%clk 0:03:00.9]} 10.
Ne2 {[%clk 0:02:37.9]} 10... c5 {[%clk 0:02:58]} 11. c3 {[%clk 0:02:38]} 11...
Nc6 {[%clk 0:02:58]} 12. Nf4 {[%clk 0:02:36.1]} 12... Bxd3 {[%clk 0:02:54.3]}
13. Qxd3 {[%clk 0:02:35.8]} 13... Be7 {[%clk 0:02:47.1]} 14. Kg2 {[%clk
0:02:31.7]} 14... Rc8 {[%clk 0:02:42.3]} 15. Nh5 {[%clk 0:02:31.4]} 15... O-O
{[%clk 0:02:37.5]} 16. h4 {[%clk 0:02:22.2]} 16... cxd4 {[%clk 0:02:25.7]} 17.
cxd4 {[%clk 0:02:22.4]} 17... Nb4 {[%clk 0:02:23.9]} 18. Qb3 {[%clk 0:02:21.9]}
18... Rc4 {[%clk 0:01:57.3]} 19. Bg5 {[%clk 0:02:05.7]} 19... Nc2 {[%clk
0:01:44.8]} 20. Rad1 {[%clk 0:02:04.4]} 20... Nb4 {[%clk 0:01:31.5]} 21. a3
{[%clk 0:01:47.9]} 21... Nc6 {[%clk 0:01:29.9]} 22. Qxb7 {[%clk 0:01:41.9]}
22... Bxg5 {[%clk 0:01:24.8]} 23. hxg5 {[%clk 0:01:41.4]} 23... Na5 {[%clk
0:01:07.4]} 24. Qa7 {[%clk 0:01:40.5]} 24... Rc2 {[%clk 0:01:02.4]} 25. Rc1
{[%clk 0:01:36.5]} 25... Rxb2 {[%clk 0:00:47.1]} 26. Rc7 {[%clk 0:01:36.3]}
26... Nb6 {[%clk 0:00:46.3]} 27. Rfc1 {[%clk 0:01:33]} 27... Nbc4 {[%clk
0:00:46.1]} 28. Nf6+ {[%clk 0:01:25.6]} 28... gxf6 {[%clk 0:00:43.9]} 29. gxf6
{[%clk 0:01:26.5]} 29... Kh8 {[%clk 0:00:38]} 30. Ng5 {[%clk 0:01:22.2]} 30...
Ne3+ {[%clk 0:00:15.4]} 31. Kg3 {[%clk 0:01:21.7]} 31... Nxg4 {[%clk 0:00:04.5]}
32. Rxf7 {[%clk 0:01:17.5]} 1-0

[Event "Early-Titled-Tuesday-Blitz-February-20-2024"]
[Site "Chess.com"]
[Date "2024.02.20"]
[Round "11"]
[White "Njal28"]
[Black "IM_ArthurDW08"]
[Result "1-0"]
[WhiteElo "3002"]
[BlackElo "2821"]
[TimeControl "180+1"]
[EndTime "10:07:42 PST"]
[Termination "Njal28 won on time"]

1. d4 {[%clk 0:03:00.9]} 1... Nf6 {[%clk 0:02:58.8]} 2. c4 {[%clk 0:02:59.9]}
2... g6 {[%clk 0:02:59.2]} 3. Nc3 {[%clk 0:02:59.6]} 3... Bg7 {[%clk 0:02:59.9]}
4. Nf3 {[%clk 0:02:59.2]} 4... O-O {[%clk 0:02:59.6]} 5. Bg5 {[%clk 0:02:59.1]}
5... d6 {[%clk 0:02:58.2]} 6. e3 {[%clk 0:02:59.3]} 6... h6 {[%clk 0:02:58.1]}
7. Bh4 {[%clk 0:02:59.3]} 7... c5 {[%clk 0:02:58.2]} 8. Be2 {[%clk 0:02:58.1]}
8... g5 {[%clk 0:02:50.3]} 9. Bg3 {[%clk 0:02:58]} 9... Nh5 {[%clk 0:02:43.9]}
10. O-O {[%clk 0:02:50.5]} 10... Nxg3 {[%clk 0:02:43]} 11. hxg3 {[%clk
0:02:50.9]} 11... cxd4 {[%clk 0:02:40.4]} 12. Nxd4 {[%clk 0:02:43.4]} 12... Nc6
{[%clk 0:02:39.2]} 13. Qd2 {[%clk 0:02:42.9]} 13... Bd7 {[%clk 0:02:34.8]} 14.
Rac1 {[%clk 0:02:41.9]} 14... Rc8 {[%clk 0:02:33.5]} 15. Rfd1 {[%clk 0:02:40.4]}
15... Nxd4 {[%clk 0:01:55.4]} 16. exd4 {[%clk 0:02:40.6]} 16... e6 {[%clk
0:01:47.8]} 17. b4 {[%clk 0:02:35.9]} 17... a5 {[%clk 0:01:44.4]} 18. b5 {[%clk
0:02:30.1]} 18... Qb6 {[%clk 0:01:19.4]} 19. c5 {[%clk 0:02:10.4]} 19... Qc7
{[%clk 0:00:49.5]} 20. Ne4 {[%clk 0:01:55.1]} 20... dxc5 {[%clk 0:00:48.3]} 21.
dxc5 {[%clk 0:01:56]} 21... Rcd8 {[%clk 0:00:39.2]} 22. Qe3 {[%clk 0:01:37.3]}
22... Bc8 {[%clk 0:00:27.5]} 23. Nd6 {[%clk 0:01:29.4]} 23... Qb8 {[%clk
0:00:12.9]} 24. Bh5 {[%clk 0:01:26.1]} 24... b6 {[%clk 0:00:11.5]} 25. Nxc8
{[%clk 0:01:18.1]} 25... Rxc8 {[%clk 0:00:12.4]} 26. c6 {[%clk 0:01:13.8]} 26...
Rc7 {[%clk 0:00:06.6]} 27. Rd3 {[%clk 0:01:08.5]} 27... Re7 {[%clk 0:00:04.2]}
28. Rcd1 {[%clk 0:01:07.5]} 28... Rc8 {[%clk 0:00:02.3]} 29. Rd7 {[%clk
0:01:05.4]} 1-0

[Event "Early-Titled-Tuesday-Blitz-February-20-2024"]
[Site "Chess.com"]
[Date "2024.02.20"]
[Round "11"]
[White "mortngabriel"]
[Black "LuisFSiles"]
[Result "1-0"]
[WhiteElo "2527"]
[BlackElo "2329"]
[TimeControl "180+1"]
[EndTime "10:07:43 PST"]
[Termination "mortngabriel won by resignation"]

1. e4 {[%clk 0:03:00.9]} 1... c5 {[%clk 0:02:57.1]} 2. Nf3 {[%clk 0:02:59.8]}
2... Nc6 {[%clk 0:02:56.8]} 3. d4 {[%clk 0:03:00.1]} 3... cxd4 {[%clk
0:02:57.7]} 4. Nxd4 {[%clk 0:03:00.4]} 4... Nf6 {[%clk 0:02:58.3]} 5. Nc3 {[%clk
0:03:00.5]} 5... e5 {[%clk 0:02:58.9]} 6. Ndb5 {[%clk 0:03:00.8]} 6... d6 {[%clk
0:02:59.4]} 7. Bg5 {[%clk 0:03:01.3]} 7... a6 {[%clk 0:03:00]} 8. Na3 {[%clk
0:03:01.8]} 8... b5 {[%clk 0:03:00.7]} 9. Nd5 {[%clk 0:03:02.4]} 9... Be7 {[%clk
0:03:01]} 10. Bxf6 {[%clk 0:03:03]} 10... Bxf6 {[%clk 0:03:01.9]} 11. c4 {[%clk
0:03:03.6]} 11... b4 {[%clk 0:02:59.2]} 12. Nc2 {[%clk 0:03:03.3]} 12... O-O
{[%clk 0:02:58.8]} 13. g3 {[%clk 0:03:03.6]} 13... a5 {[%clk 0:02:57.5]} 14. Bg2
{[%clk 0:03:03.4]} 14... Be6 {[%clk 0:02:54.6]} 15. O-O {[%clk 0:03:02.6]} 15...
Rb8 {[%clk 0:02:43.7]} 16. Qd3 {[%clk 0:03:01.7]} 16... Bxd5 {[%clk 0:02:35.9]}
17. Qxd5 {[%clk 0:02:59.2]} 17... Qc7 {[%clk 0:02:22.5]} 18. b3 {[%clk
0:02:54.5]} 18... Rfd8 {[%clk 0:02:02.9]} 19. Rad1 {[%clk 0:02:54.1]} 19... Nd4
{[%clk 0:01:52.4]} 20. Nxd4 {[%clk 0:02:53.3]} 20... exd4 {[%clk 0:01:52.3]} 21.
f4 {[%clk 0:02:51.7]} 21... Qc5 {[%clk 0:01:51.8]} 22. e5 {[%clk 0:02:42.1]}
22... Qxd5 {[%clk 0:01:51.7]} 23. Bxd5 {[%clk 0:02:42]} 23... Be7 {[%clk
0:01:46]} 24. e6 {[%clk 0:02:39]} 24... fxe6 {[%clk 0:01:41.3]} 25. Bxe6+ {[%clk
0:02:39.1]} 25... Kf8 {[%clk 0:01:40.4]} 26. Rxd4 {[%clk 0:02:38.8]} 26... Bf6
{[%clk 0:01:40.4]} 27. Rd3 {[%clk 0:02:33.8]} 27... g6 {[%clk 0:01:30.3]} 28.
Rfd1 {[%clk 0:02:31.5]} 28... Ke7 {[%clk 0:01:30.4]} 29. Bg4 {[%clk 0:02:28.8]}
29... Bc3 {[%clk 0:01:24.6]} 30. Re3+ {[%clk 0:02:24.1]} 30... Kf8 {[%clk
0:01:22.5]} 31. Rd5 {[%clk 0:02:21.2]} 31... Re8 {[%clk 0:01:10.5]} 32. Rxe8+
{[%clk 0:01:56.3]} 32... Rxe8 {[%clk 0:01:09.5]} 33. Rxd6 {[%clk 0:01:56.7]}
33... Re1+ {[%clk 0:01:09.5]} 34. Kg2 {[%clk 0:01:56.7]} 34... Ra1 {[%clk
0:00:39.3]} 35. c5 {[%clk 0:01:52.9]} 35... Rxa2+ {[%clk 0:00:39.8]} 36. Kh3
{[%clk 0:01:51.8]} 36... Rc2 {[%clk 0:00:39.1]} 37. c6 {[%clk 0:01:50.4]} 37...
Bf6 {[%clk 0:00:39.3]} 38. Rxf6+ {[%clk 0:01:49.7]} 38... Ke7 {[%clk 0:00:39.4]}
39. Re6+ {[%clk 0:01:49.6]} 39... Kf7 {[%clk 0:00:39.9]} 40. Rd6 {[%clk
0:01:49.3]} 40... h5 {[%clk 0:00:37.5]} 41. Rd7+ {[%clk 0:01:39.8]} 41... Ke8
{[%clk 0:00:37.3]} 42. Bf3 {[%clk 0:01:39.6]} 42... Rc3 {[%clk 0:00:26.6]} 43.
Bd5 {[%clk 0:01:37.2]} 43... Rc5 {[%clk 0:00:22.4]} 44. Bf7+ {[%clk 0:01:36.3]}
44... Kf8 {[%clk 0:00:21.5]} 45. c7 {[%clk 0:01:28.4]} 45... a4 {[%clk
0:00:21.8]} 46. bxa4 {[%clk 0:01:27.5]} 1-0

[Event "Early-Titled-Tuesday-Blitz-February-20-2024"]
[Site "Chess.com"]
[Date "2024.02.20"]
[Round "11"]
[White "dzhumagaliev"]
[Black "GMT4114"]
[Result "1-0"]
[WhiteElo "2760"]
[BlackElo "2034"]
[TimeControl "180+1"]
[EndTime "10:07:45 PST"]
[Termination "dzhumagaliev won on time"]

1. h4 {[%clk 0:03:00.9]} 1... e5 {[%clk 0:02:55.8]} 2. h5 {[%clk 0:03:01.8]}
2... d5 {[%clk 0:02:54.7]} 3. c3 {[%clk 0:03:02.3]} 3... Nc6 {[%clk 0:02:51.5]}
4. d4 {[%clk 0:03:02.8]} 4... Bf5 {[%clk 0:02:49.5]} 5. dxe5 {[%clk 0:03:01.4]}
5... Nxe5 {[%clk 0:02:50.4]} 6. Bf4 {[%clk 0:03:01.1]} 6... Bd6 {[%clk
0:02:48.8]} 7. Nf3 {[%clk 0:02:59.8]} 7... Nxf3+ {[%clk 0:02:46.9]} 8. gxf3
{[%clk 0:03:00.7]} 8... Bxf4 {[%clk 0:02:47]} 9. Qa4+ {[%clk 0:03:01.2]} 9...
Qd7 {[%clk 0:02:35.8]} 10. Qxf4 {[%clk 0:03:02.1]} 10... O-O-O {[%clk
0:02:35.5]} 11. e3 {[%clk 0:02:56.4]} 11... h6 {[%clk 0:02:25.8]} 12. Nd2 {[%clk
0:02:45.1]} 12... Nf6 {[%clk 0:02:24.5]} 13. Nb3 {[%clk 0:02:42.3]} 13... Be6
{[%clk 0:02:03.4]} 14. Nc5 {[%clk 0:02:12.2]} 14... Qd6 {[%clk 0:02:03.6]} 15.
Qb4 {[%clk 0:02:08.5]} 15... Qb6 {[%clk 0:01:56]} 16. Qa3 {[%clk 0:02:00.4]}
16... Rhe8 {[%clk 0:01:44.5]} 17. Rh4 {[%clk 0:02:00.3]} 17... d4 {[%clk
0:01:14]} 18. Rxd4 {[%clk 0:01:51.5]} 18... Rxd4 {[%clk 0:01:13.8]} 19. cxd4
{[%clk 0:01:52.4]} 19... Nxh5 {[%clk 0:00:59.9]} 20. Rc1 {[%clk 0:01:41.7]}
20... Kb8 {[%clk 0:00:57.9]} 21. Bc4 {[%clk 0:01:29.9]} 21... Bc8 {[%clk
0:00:23]} 22. Bxf7 {[%clk 0:01:22.6]} 22... Nf6 {[%clk 0:00:09.4]} 23. Bxe8
{[%clk 0:01:21.7]} 23... Nxe8 {[%clk 0:00:10.3]} 24. Qb3 {[%clk 0:01:11.6]}
24... Qf6 {[%clk 0:00:06.5]} 25. Qg8 {[%clk 0:01:06.4]} 25... Nd6 {[%clk
0:00:01.1]} 26. Nd7+ {[%clk 0:01:06]} 1-0

[Event "Early-Titled-Tuesday-Blitz-February-20-2024"]
[Site "Chess.com"]
[Date "2024.02.20"]
[Round "11"]
[White "Chessdude1987"]
[Black "noblerone"]
[Result "1-0"]
[WhiteElo "2358"]
[BlackElo "2515"]
[TimeControl "180+1"]
[EndTime "10:07:47 PST"]
[Termination "Chessdude1987 won by checkmate"]

1. e4 {[%clk 0:03:00.9]} 1... d5 {[%clk 0:02:55.6]} 2. exd5 {[%clk 0:03:00.2]}
2... Qxd5 {[%clk 0:02:56.5]} 3. Nf3 {[%clk 0:03:00.2]} 3... Nf6 {[%clk
0:02:54.6]} 4. Be2 {[%clk 0:03:00]} 4... Bg4 {[%clk 0:02:53.6]} 5. O-O {[%clk
0:02:57.4]} 5... e6 {[%clk 0:02:46.3]} 6. d4 {[%clk 0:02:57.1]} 6... c6 {[%clk
0:02:44.8]} 7. c4 {[%clk 0:02:57.2]} 7... Qd8 {[%clk 0:02:43.9]} 8. Nc3 {[%clk
0:02:56.8]} 8... Be7 {[%clk 0:02:38.3]} 9. h3 {[%clk 0:02:52.9]} 9... Bh5 {[%clk
0:02:38.1]} 10. Bf4 {[%clk 0:02:52.5]} 10... O-O {[%clk 0:02:37.4]} 11. g4
{[%clk 0:02:44.1]} 11... Bg6 {[%clk 0:02:36]} 12. Ne5 {[%clk 0:02:44.3]} 12...
Nfd7 {[%clk 0:02:34]} 13. Nxg6 {[%clk 0:02:44.1]} 13... hxg6 {[%clk 0:02:31]}
14. Be3 {[%clk 0:02:31.6]} 14... Bg5 {[%clk 0:02:25.3]} 15. f4 {[%clk
0:02:31.4]} 15... Bf6 {[%clk 0:02:23.5]} 16. Ne4 {[%clk 0:02:26.3]} 16... Be7
{[%clk 0:02:21.1]} 17. Bf3 {[%clk 0:02:23.6]} 17... Nf6 {[%clk 0:02:19.7]} 18.
Nc3 {[%clk 0:02:17.7]} 18... a5 {[%clk 0:02:11.3]} 19. Qe2 {[%clk 0:02:16.3]}
19... Na6 {[%clk 0:02:10.3]} 20. Rad1 {[%clk 0:02:13.6]} 20... Rc8 {[%clk
0:02:00.2]} 21. Rf2 {[%clk 0:02:13.4]} 21... Rb8 {[%clk 0:01:56.1]} 22. Rh2
{[%clk 0:02:12.7]} 22... Nh7 {[%clk 0:01:48.2]} 23. h4 {[%clk 0:02:09.3]} 23...
Bxh4 {[%clk 0:01:39.2]} 24. g5 {[%clk 0:02:08.8]} 24... Nxg5 {[%clk 0:01:27.2]}
25. fxg5 {[%clk 0:02:07.3]} 25... Bxg5 {[%clk 0:01:28.1]} 26. Bxg5 {[%clk
0:02:01.5]} 26... Qxg5+ {[%clk 0:01:29]} 27. Bg2 {[%clk 0:01:54]} 27... Rfd8
{[%clk 0:01:22.4]} 28. Ne4 {[%clk 0:01:43.8]} 28... Qe7 {[%clk 0:01:19.4]} 29.
Qe3 {[%clk 0:01:37.7]} 29... f6 {[%clk 0:01:04.3]} 30. Rf1 {[%clk 0:01:26.2]}
30... Nb4 {[%clk 0:00:45.1]} 31. Ng5 {[%clk 0:01:12.7]} 31... f5 {[%clk
0:00:20.5]} 32. Rh8+ {[%clk 0:00:55.6]} 32... Kxh8 {[%clk 0:00:20.1]} 33. Qh3+
{[%clk 0:00:55.4]} 33... Kg8 {[%clk 0:00:20.6]} 34. Qh7+ {[%clk 0:00:55.4]}
34... Kf8 {[%clk 0:00:21.2]} 35. Qh8# {[%clk 0:00:55.5]} 1-0